bitfinex/quotes_ETHUSD_20240823
["timestamp","ask_amount","ask_price","bid_price","bid_amount"]
[1724449162049,0.03461385,2778.8,2778.5,3.59894]
[1724449162255,0.03476122,2778.9,2778.5,7.1979]
[1724449162553,0.1344372,2779.0,2778.5,7.1979]
[1724449162554,0.1344372,2779.0,2778.6,3.59893]
[1724449162768,0.03461385,2778.8,2778.6,3.59893]
[1724449163085,0.1344372,2779.0,2778.6,3.59893]
[1724449163389,12.8026772,2779.0,2778.4,19.34]
[1724449163677,1.31496194,2778.9,2778.4,19.34]
[1724449164182,1.31496194,2778.9,2778.4,22.93918]
[1724449164853,0.03469422,2778.9,2778.5,3.59902]
[1724449165272,3.59883,2778.7,2778.0,3.59962]
[1724449166675,3.59883,2778.7,2777.9,29.5642572]
[1724449166676,7.19775,2778.7,2777.9,29.5642572]
[1724449166884,0.03418186,2778.6,2777.9,29.5642572]
[1724449167199,12.70294186,2778.6,2777.9,25.9644372]
[1724449167423,12.70294186,2778.6,2777.6,3.6002]
[1724449167424,3.59933,2778.3,2777.6,3.6002]
[1724449167568,1.63017719,2778.5,2777.6,3.6002]
[1724449167916,0.03390913,2778.2,2777.7,3.60008]
[1724449168058,3.59927,2778.4,2777.6,3.60012]
[1724449168263,0.03382299,2778.1,2777.6,7.20025]
[1724449168489,3.59927,2778.4,2777.6,8.853115]
[1724449168701,0.03465971,2778.0,2777.6,5.252985]
[1724449168902,3.59927,2778.4,2777.6,5.252985]
[1724449169075,0.03457355,2777.9,2777.6,3.60012]
[1724449169269,3.59927,2778.4,2777.6,3.60012]
[1724449169472,0.03441557,2777.8,2777.6,3.60012]
[1724449169677,3.59927,2778.4,2777.6,3.60012]
[1724449170106,0.03484208,2778.3,2777.6,3.60012]
[1724449170404,0.56127101,2778.3,2777.7,3.60009]
[1724449170611,0.56127101,2778.3,2777.6,7.20026]
[1724449170905,0.56127101,2778.3,2777.6,3.60012]
[1724449171308,0.03484208,2778.3,2777.8,3.59994]
[1724449171713,1.63017719,2778.5,2777.8,3.59994]
[1724449171870,0.03482774,2778.2,2777.8,3.59994]
[1724449172070,1.63017719,2778.5,2777.8,3.59994]
[1724449172271,0.0347416,2778.1,2777.8,3.59994]
[1724449172510,1.63017719,2778.5,2777.8,3.59994]
[1724449172711,0.03465544,2778.0,2777.8,7.19988]
[1724449172870,9.0698,2778.6,2778.0,3.5997]
[1724449175334,0.03506221,2778.5,2778.0,3.5997]
[1724449176947,0.03506221,2778.5,2778.1,3.59957]
[1724449179391,3.59881,2778.7,2778.1,3.59957]
[1724449179598,0.03475319,2778.4,2778.1,3.59957]
[1724449179781,3.59881,2778.7,2778.1,3.59957]
[1724449179995,0.03466705,2778.3,2778.1,3.59957]
[1724449180232,9.042,2778.8,2778.1,3.59957]
[1724449180585,0.0363809,2778.7,2778.1,3.59957]
[1724449180897,0.0363809,2778.7,2778.1,7.19908]
[1724449181319,0.0363809,2778.7,2778.1,3.59951]
[1724449181917,0.0363809,2778.7,2778.1,3.5995]
[1724449182634,1.66394699,2778.7,2778.1,3.5995]
[1724449183427,0.0363809,2778.7,2778.2,3.59944]
[1724449183738,0.0363809,2778.7,2778.1,3.5995]
[1724449184606,3.59867,2778.8,2778.1,3.5995]
[1724449185430,7.19743,2778.8,2778.1,3.5995]
[1724449185735,4.63185672,2778.8,2778.1,3.5995]
[1724449185889,3.59895,2778.6,2777.9,3.59978]
[1724449186086,9.042,2778.7,2778.1,3.59955]
[1724449186740,9.042,2778.7,2778.0,3.59968]
[1724449186890,12.64088,2778.7,2778.0,3.59968]
[1724449187243,16.23978,2778.7,2778.0,3.59968]
[1724449187533,16.23978,2778.7,2777.7,19.2333472]
[1724449187534,3.59911,2778.5,2777.7,19.2333472]
[1724449188493,3.59911,2778.5,2777.8,3.59988]
[1724449188704,3.59911,2778.5,2777.7,13.8244372]
[1724449188705,12.64124,2778.4,2777.7,13.8244372]
[1724449188937,9.042,2778.4,2777.8,3.59993]
[1724449191211,9.042,2778.4,2777.7,10.2244272]
[1724449191442,9.042,2778.4,2777.7,11.72973294]
[1724449191757,9.042,2778.4,2777.9,3.59983]
[1724449191925,9.042,2778.4,2777.7,15.32971294]
[1724449192123,9.042,2778.4,2777.8,3.59989]
[1724449192543,9.042,2778.4,2777.7,10.2244172]
[1724449192727,4.73140833,2778.3,2777.7,10.2244172]
[1724449192931,12.6412,2778.4,2777.8,3.59996]
[1724449193160,12.6412,2778.4,2777.7,13.8244172]
[1724449193458,12.6412,2778.4,2777.7,13.8244372]
[1724449193615,12.6412,2778.4,2777.7,13.8244472]
[1724449193985,9.042,2778.4,2777.9,3.59976]
[1724449194652,9.042,2778.4,2777.9,3.59975]
[1724449195950,9.042,2778.4,2777.9,7.19949]
[1724449196223,9.042,2778.4,2777.9,7.19951]
[1724449196422,9.042,2778.4,2777.9,3.59974]
[1724449196822,9.042,2778.4,2777.9,7.19951]
[1724449197224,9.042,2778.4,2777.9,3.59974]
[1724449197529,9.042,2778.4,2777.9,7.19951]
[1724449198161,9.042,2778.4,2777.9,7.19949]
[1724449198730,9.042,2778.4,2778.0,3.59969]
[1724449200464,3.1344372,2779.0,2778.4,3.59917]
[1724449200465,9.3776,2778.9,2778.4,3.59917]
[1724449201034,9.3776,2778.9,2778.2,3.59944]
[1724449201238,9.3776,2778.9,2778.0,0.719965]
[1724449201454,9.3776,2778.9,2778.4,3.59917]
[1724449201625,10.98865372,2778.9,2778.4,3.59917]
[1724449202253,10.98865372,2778.9,2778.3,7.19841]
[1724449202851,10.98865372,2778.9,2778.3,3.5992]
[1724449203236,3.59868,2778.8,2778.1,3.59948]
[1724449203571,3.59868,2778.8,2778.1,7.19896]
[1724449203772,3.59868,2778.8,2778.2,3.59942]
[1724449204086,4.84700128,2778.8,2778.2,3.59942]
[1724449204366,4.84700128,2778.8,2778.1,3.59948]
[1724449204367,8.44575128,2778.8,2778.1,3.59948]
[1724449204579,9.3776,2778.7,2778.1,3.59948]
[1724449204743,3.59909,2778.5,2777.9,3.59976]
[1724449204940,9.3776,2778.4,2777.7,10.2244272]
[1724449205275,7.19883,2778.3,2777.7,6.6244372]
[1724449205423,7.19882,2778.3,2777.7,6.6244372]
[1724449205631,3.59938,2778.3,2777.7,6.6244372]
[1724449205966,3.59938,2778.3,2777.7,10.2245072]
[1724449206579,3.59938,2778.3,2777.7,3.60007]
[1724449207644,5.03629487,2778.3,2777.7,3.60007]
[1724449208546,9.3776,2778.2,2777.7,3.60007]
[1724449212467,9.3776,2778.2,2777.7,3.60002]
[1724449212887,9.3776,2778.2,2777.7,7.20002]
[1724449213202,9.3776,2778.2,2777.7,7.20003]
[1724449213499,9.3776,2778.2,2777.7,3.6]
[1724449213851,3.59857,2778.9,2777.5,3.60027]
[1724449213852,9.9581,2779.1,2778.1,3.5995]
[1724449214209,9.9581,2779.1,2778.8,7.19717]
[1724449214369,9.9581,2779.4,2778.8,3.59857]
[1724449215971,9.9581,2779.4,2778.8,7.19717]
[1724449216299,9.9581,2779.4,2778.8,3.59857]
[1724449217422,13.556,2779.4,2778.8,3.59857]
[1724449219869,9.9581,2779.4,2778.8,3.59857]
[1724449220987,9.9581,2779.4,2778.9,3.59854]
[1724449221930,9.7451,2779.6,2778.9,3.59854]
[1724449222143,9.7451,2779.6,2778.9,7.19708]
[1724449222494,9.7451,2779.6,2778.9,3.59854]
[1724449222695,13.34282,2779.6,2778.9,3.59854]
[1724449223122,3.59787,2779.5,2778.7,3.59871]
[1724449223327,9.7451,2779.1,2778.7,3.59871]
[1724449223528,9.7451,2779.1,2778.5,19.34]
[1724449223691,9.7451,2779.1,2778.6,3.59891]
[1724449223891,9.7451,2779.1,2778.1,16.61948987]
[1724449223892,1.12239092,2779.0,2778.2,19.34]
[1724449224135,9.7451,2778.8,2778.1,3.5995]
[1724449224441,9.7451,2778.8,2778.2,3.59944]
[1724449224603,3.5989,2778.7,2778.0,3.59961]
[1724449224941,3.5989,2778.7,2777.9,10.2242372]
[1724449225148,9.7451,2778.5,2777.9,10.2242372]
[1724449225296,13.34418,2778.5,2777.9,6.6244372]
[1724449225493,16.94336,2778.5,2777.9,6.6244372]
[1724449225706,16.94337,2778.5,2777.9,6.6244372]
[1724449226142,3.59941,2778.3,2777.9,6.6244372]
[1724449226347,3.59941,2778.3,2777.5,3.60025]
[1724449226644,3.59941,2778.3,2777.6,3.960155]
[1724449227796,3.59941,2778.3,2777.6,3.960245]
[1724449228009,3.59941,2778.3,2777.5,3.60025]
[1724449228205,9.7451,2778.2,2777.5,7.2005]
[1724449228407,9.7451,2778.2,2777.5,3.60025]
[1724449228704,9.7451,2778.2,2777.5,7.20052]
[1724449228904,9.7451,2778.2,2777.5,3.60025]
[1724449229353,9.7451,2778.2,2777.5,6.91677772]
[1724449229952,9.7451,2778.2,2777.5,10.51704772]
[1724449230152,13.34456,2778.2,2777.5,6.91677772]
[1724449230505,13.34456,2778.2,2777.5,3.60025]
[1724449231154,13.34456,2778.2,2777.5,7.20053]
[1724449231549,13.34456,2778.2,2777.6,3.6002]
[1724449231775,13.34456,2778.2,2777.5,3.60025]
[1724449231921,0.06570436,2778.1,2777.5,7.20052]
[1724449232158,0.06570436,2778.1,2777.6,3.6002]
[1724449233243,0.06570436,2778.1,2777.5,8.58300572]
[1724449233443,0.06570436,2778.1,2777.5,4.98274572]
[1724449235060,0.06570436,2778.1,2777.5,1.38249572]
[1724449235061,3.66540436,2778.1,2777.5,1.38249572]
[1724449235213,3.66540436,2778.1,2777.4,3.60045]
[1724449235759,3.59971,2778.0,2777.4,3.60045]
[1724449236258,3.59971,2778.0,2777.4,3.60041]
[1724449236454,3.59971,2778.0,2777.4,7.2008]
[1724449236664,13.34456,2778.2,2777.4,7.2008]
[1724449236870,3.59959,2778.1,2777.4,7.2008]
[1724449237354,0.06554555,2778.0,2777.4,7.20079]
[1724449237906,0.06554555,2778.0,2777.5,3.60035]
[1724449238444,0.06554555,2778.0,2777.4,3.60039]
[1724449238760,0.06554555,2778.0,2777.4,7.20079]
[1724449238910,0.06554555,2778.0,2777.4,3.60039]
[1724449239766,0.06554555,2778.0,2777.5,3.60035]
[1724449240929,0.06554555,2778.0,2777.4,7.2008]
[1724449241127,0.06554555,2778.0,2777.4,3.60039]
[1724449241345,1.05349927,2778.0,2777.4,3.60039]
[1724449241729,1.05349927,2778.0,2777.5,3.60033]
[1724449242166,1.05349927,2778.0,2777.4,3.60039]
[1724449242516,1.05349927,2778.0,2777.4,7.20078]
[1724449242744,1.05349927,2778.0,2777.5,3.60035]
[1724449243859,9.8648,2777.9,2777.5,3.60035]
[1724449244362,0.06512788,2777.8,2777.5,3.60035]
[1724449246264,0.06512788,2777.8,2777.4,3.60038]
[1724449247130,9.8648,2777.7,2776.5,0.4929823]
[1724449247410,3.60177,2776.5,2775.6,4.34889006]
[1724449247562,9.8648,2776.4,2775.6,0.74618006]
[1724449247768,3.60219,2776.1,2775.6,0.74618006]
[1724449248068,0.06365449,2776.0,2775.6,0.74618006]
[1724449248309,9.8648,2775.9,2775.6,0.74618006]
[1724449248806,0.06319848,2775.8,2775.6,0.74618006]
[1724449249609,9.8648,2775.7,2775.6,0.74618006]
[1724449249912,9.92721706,2775.7,2775.6,0.74618006]
[1724449250277,9.92721706,2775.7,2774.9,3.60366]
[1724449250485,9.92721706,2775.7,2775.0,3.60356]
[1724449251222,9.92721706,2775.7,2774.8,3.60374]
[1724449251421,14.88299777,2775.7,2774.8,1.716562]
[1724449251723,11.28019777,2775.7,2774.9,3.60371]
[1724449251884,9.92721706,2775.7,2774.9,3.60371]
[1724449252083,9.92721706,2775.7,2774.8,3.60382]
[1724449252502,13.52993706,2775.7,2774.8,3.60382]
[1724449252672,13.52993706,2775.7,2774.5,3.60422]
[1724449252883,3.60308,2775.5,2774.5,3.60422]
[1724449253086,3.60308,2775.5,2774.6,0.360422]
[1724449253426,0.06215241,2775.4,2774.6,3.964512]
[1724449254803,0.06215241,2775.4,2774.7,3.60397]
[1724449255821,0.06215241,2775.4,2774.3,32.90237]
[1724449256126,3.60332,2775.3,2774.5,3.60422]
[1724449256280,9.6438,2775.2,2774.5,3.60422]
[1724449256800,0.06120936,2775.1,2774.5,3.60422]
[1724449257578,0.06120936,2775.1,2774.6,3.60409]
[1724449258708,0.06120936,2775.1,2774.7,3.60393]
[1724449259230,3.60298,2775.5,2774.7,3.60393]
[1724449259428,0.06098637,2775.0,2774.8,0.360393]
[1724449259778,0.06090712,2774.9,2774.8,0.360393]
[1724449260211,3.60298,2775.5,2774.8,0.360393]
[1724449260422,0.06090712,2774.9,2774.8,3.964253]
[1724449260638,9.6264,2775.6,2774.9,3.60372]
[1724449260935,3.60247,2775.9,2774.9,3.60372]
[1724449261141,3.60301,2775.5,2774.7,3.60398]
[1724449261429,3.6028,2775.7,2774.9,3.60372]
[1724449261586,3.6028,2775.7,2775.0,3.60358]
[1724449261788,3.60246,2775.9,2775.1,3.60345]
[1724449262533,0.06166011,2775.8,2775.2,3.60333]
[1724449262897,0.06166011,2775.8,2775.3,3.6032]
[1724449263080,9.6264,2776.0,2775.4,3.96339]
[1724449263510,0.06177924,2775.9,2775.4,3.96339]
[1724449264900,0.06177924,2775.9,2775.2,3.60333]
[1724449265489,0.06177924,2775.9,2775.3,3.6032]
[1724449265784,0.06177924,2775.9,2775.2,3.60333]
[1724449266136,0.06177924,2775.9,2775.3,3.60319]
[1724449268192,0.06177924,2775.9,2775.5,3.60293]
[1724449268535,3.60204,2776.2,2775.5,4.942353]
[1724449268827,0.06185215,2775.8,2775.7,3.60269]
[1724449268981,13.22822,2776.4,2775.7,3.60269]
[1724449269185,13.22822,2776.4,2775.5,1.339423]
[1724449269386,0.062296,2776.3,2775.5,1.339423]
[1724449269589,0.062296,2776.3,2775.5,4.942273]
[1724449269813,3.664226,2776.3,2775.6,3.60281]
[1724449270334,13.22845,2776.2,2775.5,4.942273]
[1724449270892,9.6264,2776.2,2775.2,19.34]
[1724449271404,3.60252,2775.9,2775.2,22.94333]
[1724449271623,3.60262,2775.8,2775.2,19.34]
[1724449271935,3.60262,2775.8,2775.0,3.60358]
[1724449271936,3.66470067,2775.7,2775.0,3.60358]
[1724449272138,3.66470067,2775.7,2775.1,1.38317072]
[1724449272340,3.60278,2775.7,2775.1,1.38317072]
[1724449272833,3.60278,2775.7,2775.1,4.98664072]
[1724449273032,9.509,2775.6,2775.1,1.38317072]
[1724449273337,0.06159854,2775.5,2775.1,1.38317072]
[1724449274504,0.06159854,2775.5,2774.9,10.2280672]
[1724449274690,3.66457854,2775.5,2774.9,10.2280672]
[1724449274890,3.60298,2775.5,2774.7,22.94394]
[1724449275100,3.60329,2775.3,2774.7,22.94394]
[1724449275789,7.20661,2775.3,2774.7,19.34]
[1724449275999,3.60329,2775.3,2774.7,19.34]
[1724449276205,3.60329,2775.3,2774.7,21.994831]
[1724449276819,3.60335,2775.2,2774.7,21.994831]
[1724449277224,0.05897246,2775.1,2774.7,21.994831]
[1724449277626,3.60329,2775.3,2774.7,19.34]
[1724449277828,3.60329,2775.3,2774.5,3.6042]
[1724449277829,3.6035,2775.1,2774.5,3.6042]
[1724449278034,9.3396,2775.2,2774.1,19.4629172]
[1724449278035,3.60394,2774.8,2774.1,19.4629172]
[1724449278256,3.60435,2774.5,2773.7,10.2297172]
[1724449278414,3.60438,2774.4,2773.7,10.2297172]
[1724449278615,3.60452,2774.3,2773.6,19.34]
[1724449278967,9.39750275,2774.2,2773.6,22.94541]
[1724449279278,9.39750275,2774.2,2773.6,3.60541]
[1724449279435,9.39750275,2774.2,2773.7,0.360541]
[1724449280354,9.39750275,2774.2,2773.4,29.5700672]
[1724449280355,3.60512,2773.9,2773.2,3.60588]
[1724449280760,3.66233998,2773.8,2773.0,3.60619]
[1724449281125,3.60517,2773.8,2773.0,3.60619]
[1724449282327,9.3396,2773.7,2773.0,3.60619]
[1724449282676,12.9449,2773.7,2773.0,3.60619]
[1724449282828,0.05706714,2773.6,2773.0,3.60619]
[1724449283024,0.05706714,2773.6,2772.5,3.0]
[1724449283025,9.3396,2773.4,2772.5,3.0]
[1724449283280,0.05653027,2773.3,2772.4,3.0]
[1724449283590,0.05653027,2773.3,2772.7,3.60649]
[1724449283728,0.05653027,2773.3,2772.8,3.967099]
[1724449284362,0.05653027,2773.3,2772.9,3.60632]
[1724449284556,0.05653027,2773.3,2773.0,3.60617]
[1724449285039,12.94501,2773.7,2773.0,3.60617]
[1724449285238,0.05626702,2773.2,2773.0,3.60618]
[1724449285479,9.3396,2773.7,2773.1,0.72125]
[1724449286358,0.0565204,2773.6,2773.1,0.72125]
[1724449286545,0.0565204,2773.6,2773.1,4.3273]
[1724449287467,0.0565204,2773.6,2772.9,3.60632]
[1724449287784,0.0565204,2773.6,2773.0,3.60619]
[1724449288489,0.0565204,2773.6,2773.1,3.60607]
[1724449288958,0.0565204,2773.6,2773.2,3.60593]
[1724449289158,0.0565204,2773.6,2773.1,3.60607]
[1724449289355,0.0565204,2773.6,2773.3,3.60578]
[1724449289870,3.0,2773.9,2773.4,3.60567]
[1724449290075,0.05660708,2773.8,2773.4,3.60567]
[1724449290262,3.0,2774.0,2773.4,3.60567]
[1724449290437,0.05669839,2773.9,2773.3,3.60573]
[1724449290759,0.05669839,2773.9,2773.4,3.60564]
[1724449291342,0.05669839,2773.9,2773.5,3.60551]
[1724449291539,0.05669839,2773.9,2773.8,3.60516]
[1724449291740,9.7081,2774.4,2773.9,3.60502]
[1724449292049,3.60404,2774.7,2773.9,3.60492]
[1724449292050,13.31213,2774.7,2773.9,3.60492]
[1724449292280,9.7081,2774.7,2774.2,3.60458]
[1724449292445,3.6038,2774.9,2774.2,3.60458]
[1724449292772,9.7081,2775.0,2774.4,3.60429]
[1724449292957,3.60327,2775.3,2774.3,3.60441]
[1724449292958,13.31137,2775.3,2774.3,3.60441]
[1724449293159,9.7081,2775.3,2774.5,3.60415]
[1724449293416,9.7081,2775.3,2774.7,3.60391]
[1724449293546,0.05790489,2775.2,2774.8,3.60384]
[1724449293889,3.60302,2775.5,2774.8,3.60384]
[1724449294091,0.05818725,2775.4,2774.8,3.60384]
[1724449294296,0.05818725,2775.4,2774.9,0.720775]
[1724449294596,0.05818725,2775.4,2775.0,3.60355]
[1724449294891,0.05818725,2775.4,2775.1,3.60337]
[1724449295076,9.7081,2775.7,2775.1,3.60337]
[1724449296105,9.7081,2775.7,2775.2,3.60333]
[1724449296648,9.7081,2775.7,2775.2,3.98203762]
[1724449296844,9.7081,2775.7,2775.1,7.20676]
[1724449297058,9.7081,2775.7,2775.1,7.20674]
[1724449297402,0.05868129,2775.6,2775.1,7.20677]
[1724449297577,0.05868129,2775.6,2775.1,3.60337]
[1724449297752,3.60262,2775.8,2775.2,3.60329]
[1724449297953,0.05863804,2775.5,2775.2,3.60329]
[1724449298168,3.60262,2775.8,2775.2,4.323956]
[1724449298364,0.05855881,2775.4,2775.2,3.60329]
[1724449298660,0.05847959,2775.3,2775.2,3.60329]
[1724449298866,3.60262,2775.8,2775.2,3.60329]
[1724449299412,0.05880443,2775.7,2775.2,3.60329]
[1724449299583,0.05880443,2775.7,2775.0,7.20708]
[1724449299770,0.05880443,2775.7,2775.0,7.9998655]
[1724449299969,0.05880443,2775.7,2775.1,3.60346]
[1724449300909,0.05880443,2775.7,2774.9,0.720775]
[1724449300910,3.60309,2775.4,2774.9,0.720775]
[1724449301046,3.60309,2775.4,2774.8,3.60377]
[1724449301395,0.05849155,2775.3,2774.8,3.60377]
[1724449301923,3.60309,2775.4,2774.8,3.60377]
[1724449302400,0.05848355,2775.3,2774.9,3.60373]
[1724449302801,12.72775,2775.5,2774.9,3.60373]
[1724449302952,0.05840035,2775.2,2774.9,3.60373]
[1724449303177,12.72775,2775.5,2774.9,3.60373]
[1724449303365,0.05832111,2775.1,2774.9,3.60373]
[1724449303683,0.05824583,2775.0,2774.9,3.60373]
[1724449303877,12.72775,2775.5,2774.9,3.60373]
[1724449304199,0.05856278,2775.4,2774.9,3.60373]
[1724449305683,0.05856278,2775.4,2774.8,7.20754]
[1724449305848,0.05856278,2775.4,2774.8,3.60377]
[1724449306466,0.05856278,2775.4,2774.9,3.60371]
[1724449307690,0.05856278,2775.4,2775.0,3.60359]
[1724449308194,0.05856278,2775.4,2775.1,3.60337]
[1724449308389,0.05856278,2775.4,2775.0,3.60359]
[1724449308928,0.05856278,2775.4,2774.9,3.60369]
[1724449309129,0.05856278,2775.4,2774.8,3.60379]
[1724449309330,0.05856278,2775.4,2774.8,5.59955272]
[1724449310535,0.05856278,2775.4,2775.0,3.60359]
[1724449311139,3.60271,2775.7,2775.0,3.60359]
[1724449311504,3.60271,2775.7,2775.0,7.20709]
[1724449311837,0.05811329,2775.6,2775.0,7.207]
[1724449312043,0.05811329,2775.6,2775.0,3.6035]
[1724449312202,0.05811329,2775.6,2775.0,7.20701]
[1724449312406,9.0401,2775.5,2775.0,3.6035]
[1724449312860,0.05858223,2775.4,2775.0,3.6035]
[1724449314563,0.05858223,2775.4,2775.0,7.20702]
[1724449314706,0.05858223,2775.4,2775.0,7.20703]
[1724449315098,0.05858223,2775.4,2775.0,3.6035]
[1724449315737,0.05858223,2775.4,2775.0,7.20701]
[1724449315929,0.05858223,2775.4,2775.0,3.6035]
[1724449317245,0.05858223,2775.4,2775.2,3.60326]
[1724449317465,9.618,2775.8,2775.2,3.60322]
[1724449317749,9.618,2775.8,2775.3,3.60316]
[1724449317945,0.05883986,2775.7,2775.2,3.60329]
[1724449318273,0.05883986,2775.7,2775.3,3.60311]
[1724449318401,9.618,2775.8,2775.3,3.60311]
[1724449318738,0.05885583,2775.7,2775.3,3.60311]
[1724449319244,9.618,2775.8,2775.3,3.60311]
[1724449319453,0.05886848,2775.6,2775.3,3.60311]
[1724449319741,9.618,2775.8,2775.3,3.60311]
[1724449319943,11.600281,2775.8,2775.3,3.60311]
[1724449320329,15.202891,2775.8,2775.2,3.60329]
[1724449320532,15.202891,2775.8,2775.3,3.6032]
[1724449320918,15.202891,2775.8,2775.2,3.60324]
[1724449321142,15.202891,2775.8,2775.1,3.60347]
[1724449321742,15.202891,2775.8,2775.2,3.60327]
[1724449322646,3.6029,2775.6,2774.9,3.60371]
[1724449322816,3.60297,2775.5,2774.9,3.60371]
[1724449323347,3.60311,2775.4,2774.7,23.2860272]
[1724449323546,3.60311,2775.4,2774.8,3.6038]
[1724449323700,3.60311,2775.4,2774.7,19.6821772]
[1724449323900,3.60321,2775.3,2774.7,19.6821772]
[1724449324133,13.581531,2775.3,2774.7,10.2283772]
[1724449324300,3.60334,2775.2,2774.7,6.6244372]
[1724449324503,13.581531,2775.3,2774.7,10.2283672]
[1724449324841,3.60336,2775.2,2774.7,6.6244372]
[1724449325138,13.22121,2775.3,2774.7,6.6244372]
[1724449325139,16.82452,2775.3,2774.7,10.2284172]
[1724449325302,13.22121,2775.3,2774.7,10.2284172]
[1724449326124,16.8245,2775.3,2774.7,6.6244372]
[1724449326315,13.22121,2775.3,2774.7,6.6244372]
[1724449326517,13.22121,2775.3,2774.7,10.2283672]
[1724449326518,3.60321,2775.3,2774.7,10.2283672]
[1724449326832,3.60302,2775.5,2774.8,3.60382]
[1724449327017,3.60322,2775.3,2774.8,3.60382]
[1724449327204,3.60322,2775.3,2774.7,6.6244372]
[1724449327402,3.60364,2775.0,2774.7,6.6244372]
[1724449327604,7.20763,2774.9,2774.7,6.6244372]
[1724449327802,1.682563,2774.9,2774.7,6.6244372]
[1724449328007,3.60386,2774.8,2774.7,6.6244372]
[1724449328270,3.60408,2774.7,2774.5,19.34]
[1724449329249,3.60386,2774.8,2774.5,19.34]
[1724449329250,3.60412,2774.6,2774.5,19.34]
[1724449329950,3.60402,2774.7,2774.3,19.34]
[1724449332834,5.286323,2774.9,2774.3,19.34]
[1724449333009,3.60394,2774.8,2774.3,19.34]
[1724449334286,3.60401,2774.7,2774.3,19.34]
[1724449334595,3.60376,2774.9,2774.4,19.34]
[1724449337273,3.60376,2774.9,2774.4,19.34]
[1724449337473,7.20759,2774.9,2774.4,19.34]
[1724449337886,3.60389,2774.8,2774.4,19.34]
[1724449338424,13.22152,2775.1,2774.4,19.34]
[1724449338603,3.0,2775.0,2774.5,3.60422]
[1724449339296,3.0,2775.0,2774.6,3.60404]
[1724449339499,3.0,2775.0,2774.5,3.60422]
[1724449339500,3.60327,2775.3,2774.7,3.60399]
[1724449339703,3.0,2775.2,2774.7,3.60399]
[1724449339918,6.60342,2775.2,2774.5,3.60417]
[1724449340323,6.60342,2775.2,2774.5,7.20834]
[1724449340471,6.60342,2775.2,2774.5,3.60416]
[1724449340669,3.60347,2775.1,2774.5,3.60416]
[1724449343295,3.60347,2775.1,2774.5,22.94416]
[1724449344396,3.60347,2775.1,2774.5,27.81980688]
[1724449344773,3.60347,2775.1,2774.5,24.21563688]
[1724449346608,3.60347,2775.1,2774.5,27.81981688]
[1724449346806,3.60347,2775.1,2774.5,24.21563688]
[1724449347498,3.0,2775.2,2774.5,24.21562688]
[1724449347705,6.60334,2775.2,2774.6,2.42156269]
[1724449348102,3.60303,2775.5,2774.9,9.8485]
[1724449348943,7.20611,2775.5,2774.9,9.8485]
[1724449349244,3.60303,2775.5,2774.9,9.8485]
[1724449349701,9.8983,2775.3,2774.6,41.83852989]
[1724449349907,9.8983,2775.3,2774.6,29.5684672]
[1724449350110,3.60334,2775.2,2774.6,29.5684672]
[1724449350608,3.60334,2775.2,2774.6,25.9644372]
[1724449352403,3.60334,2775.2,2774.6,6.6244372]
[1724449352915,3.6031,2775.4,2774.7,3.60397]
[1724449353369,3.6031,2775.4,2774.7,4.83579323]
[1724449354082,3.6033,2775.3,2774.7,4.83579323]
[1724449355406,3.60297,2775.5,2774.9,3.60369]
[1724449355617,3.0,2775.6,2774.9,13.08089]
[1724449355765,3.0,2775.7,2775.0,4.31208268]
[1724449356083,3.60283,2775.6,2775.0,4.31208268]
[1724449356911,3.60283,2775.6,2775.0,0.70849268]
[1724449357574,3.60283,2775.6,2775.0,4.31200268]
[1724449358773,3.0,2775.7,2775.2,3.60333]
[1724449359306,3.6021,2776.2,2775.5,3.60294]
[1724449359887,3.60218,2776.1,2775.5,3.60294]
[1724449360689,3.0,2776.0,2775.6,9.9247]
[1724449360889,3.0,2776.0,2775.6,11.277464]
[1724449361293,3.0,2776.0,2775.7,3.60261]
[1724449361478,6.60197,2776.3,2775.7,3.60261]
[1724449361905,6.60197,2776.3,2775.6,11.277464]
[1724449362180,3.60205,2776.2,2775.6,11.277464]
[1724449362516,3.0,2776.1,2775.6,11.277464]
[1724449362680,3.0,2776.1,2775.6,14.880264]
[1724449362877,6.60207,2776.2,2775.6,14.880264]
[1724449363294,6.60207,2776.2,2775.6,9.9247]
[1724449363295,3.60234,2776.0,2775.6,9.9247]
[1724449363496,3.60227,2776.1,2775.6,9.9247]
[1724449363720,3.0,2776.0,2775.6,9.9247]
[1724449366046,9.8819,2775.9,2775.2,6.6244372]
[1724449366199,3.60277,2775.7,2775.2,6.6244372]
[1724449366401,3.6029,2775.6,2775.2,6.6244372]
[1724449366601,3.6029,2775.6,2775.1,29.2647]
[1724449366801,3.60262,2775.8,2775.3,9.9247]
[1724449368903,10.20475,2776.0,2775.3,13.5279]
[1724449369128,6.60236,2776.0,2775.3,13.5279]
[1724449369456,6.60236,2776.0,2775.5,3.60295]
[1724449369816,3.0,2776.0,2775.5,3.60295]
[1724449370029,3.0,2776.1,2775.5,3.60295]
[1724449370230,6.60221,2776.1,2775.5,7.20583]
[1724449370550,6.60221,2776.1,2775.5,3.60288]
[1724449371032,6.60221,2776.1,2775.5,7.20576]
[1724449371220,6.60221,2776.1,2775.5,3.60288]
[1724449371623,6.60221,2776.1,2775.5,3.60287]
[1724449372465,7.262431,2776.1,2775.5,3.60287]
[1724449372645,10.864671,2776.1,2775.5,3.60287]
[1724449372850,7.262431,2776.1,2775.5,7.20575]
[1724449373099,4.15948987,2776.7,2776.0,3.6023]
[1724449373100,3.6015,2776.7,2776.0,3.6023]
[1724449373234,12.95496,2776.9,2776.1,9.4183]
[1724449373749,3.60116,2776.9,2776.1,9.4183]
[1724449374152,3.60116,2776.9,2776.2,3.60196]
[1724449374153,3.60136,2776.8,2776.2,3.60196]
[1724449375163,3.0,2776.7,2776.2,3.60196]